[Event "Late-Titled-Tuesday-Blitz-September-26-2023"]
[Site "Chess.com"]
[Date "2023.09.26"]
[Round "7"]
[White "NovikovaGalina"]
[Black "ferrufino64"]
[Result "1-0"]
[WhiteElo "2416"]
[BlackElo "2198"]
[TimeControl "180+1"]
[EndTime "15:15:14 PDT"]
[Termination "NovikovaGalina won by resignation"]

1. d4 {[%clk 0:03:00.9]} 1... d5 {[%clk 0:02:38]} 2. Nc3 {[%clk 0:02:57.7]} 2...
e6 {[%clk 0:02:30.4]} 3. Bf4 {[%clk 0:02:58.1]} 3... Bd6 {[%clk 0:02:24.6]} 4.
e3 {[%clk 0:02:57.6]} 4... c6 {[%clk 0:02:20.8]} 5. Qd2 {[%clk 0:02:54.1]} 5...
Nf6 {[%clk 0:02:17.3]} 6. f3 {[%clk 0:02:52.8]} 6... Qe7 {[%clk 0:02:15.5]} 7.
O-O-O {[%clk 0:02:52.2]} 7... e5 {[%clk 0:02:13.5]} 8. dxe5 {[%clk 0:02:49]}
8... Bxe5 {[%clk 0:02:13.9]} 9. Nge2 {[%clk 0:02:42.6]} 9... Bxf4 {[%clk
0:02:12.9]} 10. Nxf4 {[%clk 0:02:43.5]} 10... O-O {[%clk 0:02:12.7]} 11. g4
{[%clk 0:02:42.9]} 11... b6 {[%clk 0:01:45.3]} 12. h4 {[%clk 0:02:39.4]} 12...
Bb7 {[%clk 0:01:43]} 13. h5 {[%clk 0:02:38.6]} 13... Nbd7 {[%clk 0:01:42.2]} 14.
g5 {[%clk 0:02:38.5]} 14... Ne8 {[%clk 0:01:42.6]} 15. g6 {[%clk 0:02:34]} 15...
fxg6 {[%clk 0:01:42.6]} 16. hxg6 {[%clk 0:02:34.9]} 16... h6 {[%clk 0:01:43.2]}
17. Bh3 {[%clk 0:02:30.5]} 17... Nc7 {[%clk 0:01:37.8]} 18. e4 {[%clk
0:02:09.3]} 18... Ne5 {[%clk 0:01:34]} 19. exd5 {[%clk 0:01:57.1]} 19... Nxf3
{[%clk 0:01:25.6]} 20. d6 {[%clk 0:01:48]} 20... Nxd2 {[%clk 0:01:24.8]} 21.
dxe7 {[%clk 0:01:47.8]} 21... Rxf4 {[%clk 0:01:25.1]} 22. Rxd2 {[%clk
0:01:43.7]} 22... Nd5 {[%clk 0:01:21.2]} 23. Be6+ {[%clk 0:01:36.4]} 23... Kh8
{[%clk 0:01:21.2]} 24. Nxd5 {[%clk 0:01:32.4]} 24... cxd5 {[%clk 0:01:21.5]} 25.
Bd7 {[%clk 0:01:21.7]} 25... Re4 {[%clk 0:01:19.1]} 26. e8=Q+ {[%clk 0:01:15.1]}
26... Raxe8 {[%clk 0:01:19.2]} 27. Bxe8 {[%clk 0:01:15.7]} 27... Rxe8 {[%clk
0:01:20.1]} 28. Rf1 {[%clk 0:01:09.4]} 28... Kg8 {[%clk 0:01:18.8]} 29. Rdf2
{[%clk 0:01:08.1]} 29... d4 {[%clk 0:01:16.5]} 30. Rf7 {[%clk 0:01:03.4]} 30...
Be4 {[%clk 0:01:16.5]} 31. Rxa7 {[%clk 0:00:56.1]} 31... Bxg6 {[%clk 0:01:16.2]}
32. Rg1 {[%clk 0:00:56.7]} 32... Re6 {[%clk 0:01:14]} 33. a4 {[%clk 0:00:52.1]}
33... h5 {[%clk 0:01:13.6]} 34. Ra6 {[%clk 0:00:49.6]} 34... Rc6 {[%clk
0:01:09.2]} 35. Rg2 {[%clk 0:00:44.1]} 35... Be4 {[%clk 0:01:08.3]} 36. Rh2
{[%clk 0:00:43.8]} 36... Bf3 {[%clk 0:01:01.4]} 37. a5 {[%clk 0:00:37.8]} 37...
g5 {[%clk 0:00:54.1]} 38. axb6 {[%clk 0:00:34.1]} 38... Rc5 {[%clk 0:00:44.9]}
39. Rf2 {[%clk 0:00:12.5]} 39... g4 {[%clk 0:00:44.5]} 40. Rxf3 {[%clk
0:00:08.2]} 40... gxf3 {[%clk 0:00:44.5]} 41. b7 {[%clk 0:00:09]} 41... f2
{[%clk 0:00:43.2]} 42. Ra8+ {[%clk 0:00:09.9]} 42... Kf7 {[%clk 0:00:43.3]} 43.
Rf8+ {[%clk 0:00:06.4]} 43... Kxf8 {[%clk 0:00:32.4]} 44. b8=Q+ {[%clk
0:00:07.3]} 44... Ke7 {[%clk 0:00:33.3]} 45. Qf4 {[%clk 0:00:06.1]} 45... d3
{[%clk 0:00:31]} 46. Qe3+ {[%clk 0:00:04.4]} 46... Kd6 {[%clk 0:00:31.1]} 47.
Qxd3+ {[%clk 0:00:04.7]} 47... Rd5 {[%clk 0:00:29.3]} 48. Qg3+ {[%clk
0:00:04.9]} 48... Ke6 {[%clk 0:00:29.3]} 49. Qxf2 {[%clk 0:00:05.8]} 49... Rf5
{[%clk 0:00:30.2]} 50. Qe3+ {[%clk 0:00:05.1]} 50... Re5 {[%clk 0:00:30.6]} 51.
Qh6+ {[%clk 0:00:05.9]} 51... Kd5 {[%clk 0:00:31.1]} 52. b3 {[%clk 0:00:06.2]}
52... Kd4 {[%clk 0:00:31.5]} 53. Kb2 {[%clk 0:00:06.6]} 53... Kc5 {[%clk
0:00:31.8]} 54. Qd2 {[%clk 0:00:06.7]} 54... Rd5 {[%clk 0:00:31.9]} 55. Qc3+
{[%clk 0:00:07.2]} 55... Kd6 {[%clk 0:00:32.2]} 56. Qh3 {[%clk 0:00:08.1]} 56...
Ke5 {[%clk 0:00:30.9]} 57. c4 {[%clk 0:00:08.2]} 57... Rd2+ {[%clk 0:00:30.3]}
58. Kc3 {[%clk 0:00:07.7]} 58... Rf2 {[%clk 0:00:30.8]} 59. Qxh5+ {[%clk
0:00:07.8]} 59... Ke4 {[%clk 0:00:31.3]} 60. Qh4+ {[%clk 0:00:08]} 60... Ke3
{[%clk 0:00:31.4]} 61. Qxf2+ {[%clk 0:00:08.5]} 61... Kxf2 {[%clk 0:00:31.7]}
62. c5 {[%clk 0:00:09.4]} 62... Ke3 {[%clk 0:00:32.6]} 63. c6 {[%clk 0:00:10.3]}
1-0

[Event "Late-Titled-Tuesday-Blitz-September-26-2023"]
[Site "Chess.com"]
[Date "2023.09.26"]
[Round "7"]
[White "rasmussvane"]
[Black "ArtemDyachuk"]
[Result "0-1"]
[WhiteElo "2962"]
[BlackElo "2707"]
[TimeControl "180+1"]
[EndTime "15:15:16 PDT"]
[Termination "ArtemDyachuk won by checkmate"]

1. Nf3 {[%clk 0:03:00.9]} 1... Nf6 {[%clk 0:02:58.8]} 2. g3 {[%clk 0:03:01.3]}
2... b5 {[%clk 0:02:56.1]} 3. Bg2 {[%clk 0:03:00.1]} 3... Bb7 {[%clk 0:02:56.3]}
4. d4 {[%clk 0:02:58.4]} 4... e6 {[%clk 0:02:56.3]} 5. Bg5 {[%clk 0:02:58.5]}
5... c5 {[%clk 0:02:55.7]} 6. O-O {[%clk 0:02:56]} 6... cxd4 {[%clk 0:02:52.4]}
7. Nxd4 {[%clk 0:02:56.3]} 7... Bxg2 {[%clk 0:02:48.8]} 8. Kxg2 {[%clk
0:02:57.2]} 8... a6 {[%clk 0:02:48.1]} 9. e4 {[%clk 0:02:52.3]} 9... Be7 {[%clk
0:02:47.3]} 10. Qf3 {[%clk 0:02:31.7]} 10... Ra7 {[%clk 0:02:38.1]} 11. e5
{[%clk 0:02:17]} 11... Nd5 {[%clk 0:02:37.1]} 12. Bxe7 {[%clk 0:02:17.9]} 12...
Nxe7 {[%clk 0:02:37]} 13. Nc3 {[%clk 0:02:10]} 13... O-O {[%clk 0:02:33.7]} 14.
Ne4 {[%clk 0:02:09.8]} 14... Nbc6 {[%clk 0:02:16.7]} 15. Nxc6 {[%clk 0:02:08.5]}
15... Nxc6 {[%clk 0:02:17.6]} 16. Qh5 {[%clk 0:01:52.6]} 16... Qc7 {[%clk
0:01:44.5]} 17. f4 {[%clk 0:01:50.2]} 17... Nd4 {[%clk 0:01:38.3]} 18. Rac1
{[%clk 0:01:25.6]} 18... Nf5 {[%clk 0:01:04.3]} 19. Kh3 {[%clk 0:01:17.9]} 19...
Qc4 {[%clk 0:00:51.2]} 20. Rfe1 {[%clk 0:01:11.4]} 20... Qxa2 {[%clk 0:00:50.5]}
21. g4 {[%clk 0:01:06.1]} 21... Ne7 {[%clk 0:00:42.5]} 22. f5 {[%clk 0:00:35.9]}
22... Nd5 {[%clk 0:00:39.4]} 23. Kg3 {[%clk 0:00:29.8]} 23... Qxb2 {[%clk
0:00:34.8]} 24. f6 {[%clk 0:00:30.2]} 24... g6 {[%clk 0:00:24.5]} 25. Qg5 {[%clk
0:00:30.2]} 25... h6 {[%clk 0:00:18.7]} 26. Qxh6 {[%clk 0:00:30.3]} 26... Qxe5+
{[%clk 0:00:18.7]} 27. Kg2 {[%clk 0:00:24]} 27... Nxf6 {[%clk 0:00:18.6]} 28.
Nf2 {[%clk 0:00:12.2]} 28... Qd4 {[%clk 0:00:14.2]} 29. Re3 {[%clk 0:00:12.2]}
29... Nxg4 {[%clk 0:00:11.9]} 30. Nxg4 {[%clk 0:00:09.1]} 30... Qxg4+ {[%clk
0:00:12.8]} 31. Kh1 {[%clk 0:00:08.4]} 31... Qd4 {[%clk 0:00:07.6]} 32. Rce1
{[%clk 0:00:04.9]} 32... a5 {[%clk 0:00:06.3]} 33. Rh3 {[%clk 0:00:04.5]} 33...
Qg7 {[%clk 0:00:05.8]} 34. Qe3 {[%clk 0:00:05.2]} 34... Rfa8 {[%clk 0:00:05.3]}
35. Rg1 {[%clk 0:00:03.9]} 35... a4 {[%clk 0:00:05.2]} 36. Rg4 {[%clk
0:00:03.8]} 36... a3 {[%clk 0:00:05]} 37. Rgh4 {[%clk 0:00:03.4]} 37... a2
{[%clk 0:00:05.2]} 38. Rh8+ {[%clk 0:00:01.1]} 38... Qxh8 {[%clk 0:00:05.3]} 39.
Rxh8+ {[%clk 0:00:01.8]} 39... Kxh8 {[%clk 0:00:06.2]} 40. Qe5+ {[%clk 0:00:02]}
40... Kg8 {[%clk 0:00:06.7]} 41. Qa1 {[%clk 0:00:02.9]} 41... b4 {[%clk
0:00:06.8]} 42. Kg2 {[%clk 0:00:03.8]} 42... d5 {[%clk 0:00:06.9]} 43. h4 {[%clk
0:00:04]} 43... Ra3 {[%clk 0:00:07.1]} 44. h5 {[%clk 0:00:04.3]} 44... gxh5
{[%clk 0:00:07.2]} 45. Kh2 {[%clk 0:00:05]} 45... Kh7 {[%clk 0:00:05.2]} 46. c4
{[%clk 0:00:04.4]} 46... b3 {[%clk 0:00:03.9]} 47. cxd5 {[%clk 0:00:03.5]} 47...
b2 {[%clk 0:00:03.6]} 48. Qxb2 {[%clk 0:00:02.9]} 48... a1=Q {[%clk 0:00:04.1]}
49. Qc2+ {[%clk 0:00:03.5]} 49... f5 {[%clk 0:00:04.2]} 50. Qc7+ {[%clk
0:00:02.9]} 50... Qg7 {[%clk 0:00:01.7]} 51. Qc2 {[%clk 0:00:01.3]} 51... Ra2
{[%clk 0:00:01.9]} 52. Kh1 {[%clk 0:00:02.1]} 52... Ra1+ {[%clk 0:00:01.6]} 53.
Kh2 {[%clk 0:00:02.4]} 53... R1a2 {[%clk 0:00:02.2]} 54. Kh3 {[%clk 0:00:03.3]}
54... Rxc2 {[%clk 0:00:02.5]} 55. dxe6 {[%clk 0:00:04.2]} 55... Qg4# {[%clk
0:00:02.5]} 0-1

[Event "Late-Titled-Tuesday-Blitz-September-26-2023"]
[Site "Chess.com"]
[Date "2023.09.26"]
[Round "7"]
[White "Cambek64"]
[Black "esrosenberg"]
[Result "1/2-1/2"]
[WhiteElo "2462"]
[BlackElo "2370"]
[TimeControl "180+1"]
[EndTime "15:15:22 PDT"]
[Termination "Game drawn by repetition"]

1. b3 {[%clk 0:02:59.4]} 1... e5 {[%clk 0:02:59.9]} 2. Bb2 {[%clk 0:02:59.6]}
2... Nc6 {[%clk 0:03:00.6]} 3. e3 {[%clk 0:02:59]} 3... d5 {[%clk 0:03:00.6]} 4.
Bb5 {[%clk 0:02:58]} 4... Ne7 {[%clk 0:03:00.8]} 5. Nf3 {[%clk 0:02:57.3]} 5...
f6 {[%clk 0:02:37.8]} 6. d4 {[%clk 0:02:54.4]} 6... e4 {[%clk 0:02:27.3]} 7. Ng1
{[%clk 0:02:54.2]} 7... Nf5 {[%clk 0:02:15.5]} 8. Bf1 {[%clk 0:02:52.4]} 8...
Nce7 {[%clk 0:01:53.7]} 9. c4 {[%clk 0:02:50.3]} 9... c6 {[%clk 0:01:54.5]} 10.
Qd2 {[%clk 0:02:48.2]} 10... g6 {[%clk 0:01:51.9]} 11. a4 {[%clk 0:02:46.6]}
11... Bh6 {[%clk 0:01:52.1]} 12. a5 {[%clk 0:02:45.6]} 12... O-O {[%clk
0:01:52]} 13. h4 {[%clk 0:02:45.3]} 13... Be6 {[%clk 0:01:29.3]} 14. Nc3 {[%clk
0:02:33.7]} 14... Rc8 {[%clk 0:01:19.5]} 15. g3 {[%clk 0:02:32.3]} 15... c5
{[%clk 0:01:18.3]} 16. dxc5 {[%clk 0:02:30.2]} 16... Rxc5 {[%clk 0:01:17]} 17.
Ba3 {[%clk 0:02:27.6]} 17... Rxa5 {[%clk 0:01:12.8]} 18. b4 {[%clk 0:02:25.6]}
18... Rxa3 {[%clk 0:01:12.3]} 19. Rxa3 {[%clk 0:02:25]} 19... d4 {[%clk
0:01:08.7]} 20. Nxe4 {[%clk 0:02:23.9]} 20... dxe3 {[%clk 0:01:03]} 21. Qxd8
{[%clk 0:02:23.3]} 21... exf2+ {[%clk 0:01:03]} 22. Kxf2 {[%clk 0:02:20.4]}
22... Rxd8 {[%clk 0:01:03.4]} 23. Nxf6+ {[%clk 0:02:20.3]} 23... Kg7 {[%clk
0:00:59.7]} 24. Ng4 {[%clk 0:02:19]} 24... Bc1 {[%clk 0:00:58.8]} 25. Rd3 {[%clk
0:02:10.2]} 25... Rf8 {[%clk 0:00:55.7]} 26. Rf3 {[%clk 0:02:06.4]} 26... Nc6
{[%clk 0:00:44.6]} 27. Kg2 {[%clk 0:01:51.7]} 27... Ncd4 {[%clk 0:00:41.8]} 28.
Rc3 {[%clk 0:01:43.9]} 28... Bd2 {[%clk 0:00:36.8]} 29. Rd3 {[%clk 0:01:41]}
29... Bxb4 {[%clk 0:00:37.3]} 30. Ne2 {[%clk 0:01:38.5]} 30... Bxc4 {[%clk
0:00:33.9]} 31. Rxd4 {[%clk 0:01:35.4]} 31... Nxd4 {[%clk 0:00:27.5]} 32. Nxd4
{[%clk 0:01:34.8]} 32... Bd5+ {[%clk 0:00:28.3]} 33. Kg1 {[%clk 0:01:27.3]}
33... Bc5 {[%clk 0:00:27.4]} 34. Kh2 {[%clk 0:01:18]} 34... Bxd4 {[%clk
0:00:23.3]} 35. Bg2 {[%clk 0:01:17.4]} 35... Be6 {[%clk 0:00:18.4]} 36. Rd1
{[%clk 0:01:14.9]} 36... Bxg4 {[%clk 0:00:12.7]} 37. Rxd4 {[%clk 0:01:13.8]}
37... Bf3 {[%clk 0:00:12.3]} 38. Rd7+ {[%clk 0:01:11.9]} 38... Kh6 {[%clk
0:00:12.5]} 39. Bxf3 {[%clk 0:01:10.1]} 39... Rxf3 {[%clk 0:00:13.4]} 40. Rxb7
{[%clk 0:01:07.5]} 40... Ra3 {[%clk 0:00:13.7]} 41. g4 {[%clk 0:01:02.2]} 41...
a5 {[%clk 0:00:13.3]} 42. Ra7 {[%clk 0:01:00.1]} 42... a4 {[%clk 0:00:11.3]} 43.
Rb7 {[%clk 0:00:59.2]} 43... Rb3 {[%clk 0:00:10.1]} 44. Ra7 {[%clk 0:00:58.4]}
44... a3 {[%clk 0:00:10.5]} 45. Kg2 {[%clk 0:00:55.5]} 45... Rb2+ {[%clk
0:00:07.5]} 46. Kg3 {[%clk 0:00:55.2]} 46... Rb3+ {[%clk 0:00:05.5]} 47. Kf4
{[%clk 0:00:54.2]} 47... Rb4+ {[%clk 0:00:05]} 48. Kg3 {[%clk 0:00:51.8]} 48...
Rb3+ {[%clk 0:00:05.1]} 49. Kf4 {[%clk 0:00:48.5]} 49... Rb4+ {[%clk 0:00:05.2]}
50. Kf3 {[%clk 0:00:45]} 50... Rb3+ {[%clk 0:00:05.9]} 51. Ke4 {[%clk
0:00:31.4]} 51... Rb4+ {[%clk 0:00:05.9]} 52. Kf3 {[%clk 0:00:30.9]} 52... Rb3+
{[%clk 0:00:06.7]} 53. Kg2 {[%clk 0:00:27.8]} 53... Rb2+ {[%clk 0:00:06.7]} 54.
Kg3 {[%clk 0:00:27.4]} 54... Rb3+ {[%clk 0:00:07.5]} 1/2-1/2

[Event "Late-Titled-Tuesday-Blitz-September-26-2023"]
[Site "Chess.com"]
[Date "2023.09.26"]
[Round "7"]
[White "IMRosen"]
[Black "JoakimVonAnd"]
[Result "0-1"]
[WhiteElo "2564"]
[BlackElo "2733"]
[TimeControl "180+1"]
[EndTime "15:15:28 PDT"]
[Termination "JoakimVonAnd won by checkmate"]

1. d4 {[%clk 0:03:00.9]} 1... Nf6 {[%clk 0:02:58]} 2. Bf4 {[%clk 0:03:01.1]}
2... c5 {[%clk 0:02:55.9]} 3. e3 {[%clk 0:03:01.3]} 3... Nd5 {[%clk 0:02:53.8]}
4. Bg3 {[%clk 0:03:00.7]} 4... Qb6 {[%clk 0:02:50.3]} 5. b3 {[%clk 0:03:01.1]}
5... cxd4 {[%clk 0:02:49.5]} 6. exd4 {[%clk 0:03:02]} 6... e6 {[%clk 0:02:42.9]}
7. c3 {[%clk 0:03:00]} 7... Be7 {[%clk 0:02:38]} 8. Nf3 {[%clk 0:03:00.6]} 8...
O-O {[%clk 0:02:38.2]} 9. Bd3 {[%clk 0:03:01.2]} 9... f5 {[%clk 0:02:36.7]} 10.
h3 {[%clk 0:02:57.5]} 10... Nc6 {[%clk 0:02:31.6]} 11. O-O {[%clk 0:02:57.1]}
11... Qd8 {[%clk 0:02:17.3]} 12. Qe2 {[%clk 0:02:56.8]} 12... b6 {[%clk
0:02:17.2]} 13. Rc1 {[%clk 0:02:56.8]} 13... Bb7 {[%clk 0:02:17.3]} 14. Nbd2
{[%clk 0:02:57.2]} 14... Rc8 {[%clk 0:02:17]} 15. Nc4 {[%clk 0:02:57.5]} 15...
f4 {[%clk 0:01:44.1]} 16. Bh2 {[%clk 0:02:54.9]} 16... b5 {[%clk 0:01:40.7]} 17.
Nce5 {[%clk 0:02:48.9]} 17... Nxe5 {[%clk 0:01:40.6]} 18. Nxe5 {[%clk
0:02:46.4]} 18... Nxc3 {[%clk 0:01:40.3]} 19. Qh5 {[%clk 0:02:35.3]} 19... Ne4
{[%clk 0:01:35.9]} 20. Bxb5 {[%clk 0:02:14.2]} 20... Rxc1+ {[%clk 0:01:25.5]}
21. Rxc1 {[%clk 0:02:14]} 21... d6 {[%clk 0:01:25.8]} 22. Nf3 {[%clk 0:01:51.7]}
22... Qa5 {[%clk 0:01:17.4]} 23. a4 {[%clk 0:01:02.7]} 23... a6 {[%clk
0:00:54.3]} 24. b4 {[%clk 0:00:45.7]} 24... Qxb4 {[%clk 0:00:49.6]} 25. Bd3
{[%clk 0:00:38.1]} 25... Qa3 {[%clk 0:00:35]} 26. Rd1 {[%clk 0:00:28.4]} 26...
Nf6 {[%clk 0:00:28]} 27. Qh4 {[%clk 0:00:22.5]} 27... Qb3 {[%clk 0:00:27.7]} 28.
Be2 {[%clk 0:00:21.8]} 28... Be4 {[%clk 0:00:24.9]} 29. Qxf4 {[%clk 0:00:17.8]}
29... Bc2 {[%clk 0:00:24.8]} 30. Rc1 {[%clk 0:00:13.9]} 30... Nd5 {[%clk
0:00:19.6]} 31. Qd2 {[%clk 0:00:14.1]} 31... Bg6 {[%clk 0:00:19.9]} 32. a5
{[%clk 0:00:14.1]} 32... Qa3 {[%clk 0:00:18]} 33. Re1 {[%clk 0:00:12]} 33... Bf6
{[%clk 0:00:18.3]} 34. Bf1 {[%clk 0:00:10.8]} 34... Qb4 {[%clk 0:00:17.9]} 35.
Qxb4 {[%clk 0:00:10.3]} 35... Nxb4 {[%clk 0:00:18.8]} 36. Rxe6 {[%clk
0:00:10.8]} 36... Nc6 {[%clk 0:00:17.9]} 37. Rxd6 {[%clk 0:00:10.9]} 37... Nxa5
{[%clk 0:00:17.6]} 38. Rxa6 {[%clk 0:00:10.6]} 38... Nb3 {[%clk 0:00:17.7]} 39.
Bc4+ {[%clk 0:00:11.2]} 39... Bf7 {[%clk 0:00:16]} 40. Bxf7+ {[%clk 0:00:11.1]}
40... Kxf7 {[%clk 0:00:16.1]} 41. Ra7+ {[%clk 0:00:11]} 41... Ke6 {[%clk
0:00:16.3]} 42. Be5 {[%clk 0:00:11.3]} 42... Rc8 {[%clk 0:00:11.7]} 43. Bxf6
{[%clk 0:00:11]} 43... Kxf6 {[%clk 0:00:12.6]} 44. Rb7 {[%clk 0:00:09]} 44...
Rc3 {[%clk 0:00:10.4]} 45. Rb6+ {[%clk 0:00:07.7]} 45... Ke7 {[%clk 0:00:08.9]}
46. Rb7+ {[%clk 0:00:07.5]} 46... Kf6 {[%clk 0:00:09]} 47. d5 {[%clk 0:00:07.4]}
47... Rd3 {[%clk 0:00:09]} 48. d6 {[%clk 0:00:07.9]} 48... Nc5 {[%clk 0:00:09]}
49. Rb6 {[%clk 0:00:08.3]} 49... Nd7 {[%clk 0:00:09.4]} 50. Kf1 {[%clk
0:00:07.3]} 50... Nxb6 {[%clk 0:00:09]} 51. Ke2 {[%clk 0:00:06.4]} 51... Rxd6
{[%clk 0:00:09.3]} 52. g4 {[%clk 0:00:06.9]} 52... Nd5 {[%clk 0:00:09.7]} 53. h4
{[%clk 0:00:03.1]} 53... Nf4+ {[%clk 0:00:09.9]} 54. Ke3 {[%clk 0:00:03.8]}
54... Ne6 {[%clk 0:00:10.5]} 55. g5+ {[%clk 0:00:03.8]} 55... Kf5 {[%clk
0:00:10.4]} 56. Ng1 {[%clk 0:00:02.3]} 56... Ra6 {[%clk 0:00:10.7]} 57. Kf3
{[%clk 0:00:02.2]} 57... Ra3+ {[%clk 0:00:11.1]} 58. Kg2 {[%clk 0:00:02.8]}
58... Nf4+ {[%clk 0:00:10.9]} 59. Kh2 {[%clk 0:00:02.6]} 59... Kg4 {[%clk
0:00:11]} 60. f3+ {[%clk 0:00:02]} 60... Kxh4 {[%clk 0:00:11.3]} 61. Kh1 {[%clk
0:00:01.9]} 61... Kg3 {[%clk 0:00:10.7]} 62. g6 {[%clk 0:00:02]} 62... hxg6
{[%clk 0:00:09.4]} 63. Ne2+ {[%clk 0:00:02.7]} 63... Nxe2 {[%clk 0:00:09.4]} 64.
f4 {[%clk 0:00:02.8]} 64... Nxf4 {[%clk 0:00:09.2]} 65. Kg1 {[%clk 0:00:02.5]}
65... Ra1# {[%clk 0:00:10.1]} 0-1

[Event "Late-Titled-Tuesday-Blitz-September-26-2023"]
[Site "Chess.com"]
[Date "2023.09.26"]
[Round "7"]
[White "LeninGuerra"]
[Black "gabduschew"]
[Result "1-0"]
[WhiteElo "2531"]
[BlackElo "2380"]
[TimeControl "180+1"]
[EndTime "15:15:34 PDT"]
[Termination "LeninGuerra won by resignation"]

1. e4 {[%clk 0:02:55.6]} 1... Nc6 {[%clk 0:02:59.2]} 2. d4 {[%clk 0:02:54.4]}
2... d5 {[%clk 0:02:58.8]} 3. exd5 {[%clk 0:02:53.3]} 3... Qxd5 {[%clk
0:02:58.4]} 4. Nf3 {[%clk 0:02:53.8]} 4... e5 {[%clk 0:02:57.9]} 5. Nc3 {[%clk
0:02:42.8]} 5... Bb4 {[%clk 0:02:56.6]} 6. Bd2 {[%clk 0:02:39.2]} 6... Bxc3
{[%clk 0:02:55.6]} 7. Bxc3 {[%clk 0:02:39.4]} 7... e4 {[%clk 0:02:55.5]} 8. Ne5
{[%clk 0:02:38.4]} 8... Nxe5 {[%clk 0:02:55]} 9. dxe5 {[%clk 0:02:39.3]} 9...
Ne7 {[%clk 0:02:55.1]} 10. Qe2 {[%clk 0:02:33.3]} 10... Bf5 {[%clk 0:02:52.1]}
11. Rd1 {[%clk 0:02:33.1]} 11... Qc6 {[%clk 0:02:46.2]} 12. g4 {[%clk
0:02:31.9]} 12... Bg6 {[%clk 0:02:43.6]} 13. Bg2 {[%clk 0:02:28.6]} 13... h5
{[%clk 0:02:31.4]} 14. gxh5 {[%clk 0:02:14.6]} 14... Rxh5 {[%clk 0:02:30.3]} 15.
Rd4 {[%clk 0:01:46.5]} 15... Rh4 {[%clk 0:02:26.5]} 16. O-O {[%clk 0:01:32.2]}
16... f5 {[%clk 0:01:26.7]} 17. exf6 {[%clk 0:01:13.4]} 17... gxf6 {[%clk
0:01:25.8]} 18. Rc4 {[%clk 0:01:05.5]} 18... Qd6 {[%clk 0:01:17.5]} 19. h3
{[%clk 0:00:58.3]} 19... O-O-O {[%clk 0:01:12.8]} 20. Qe3 {[%clk 0:00:57.4]}
20... Nc6 {[%clk 0:01:07.1]} 21. Qg3 {[%clk 0:00:46.7]} 21... Rh6 {[%clk
0:00:53.6]} 22. Qxd6 {[%clk 0:00:14.5]} 22... Rxd6 {[%clk 0:00:53.2]} 23. Bxe4
{[%clk 0:00:15]} 23... Bxe4 {[%clk 0:00:51.9]} 24. Rxe4 {[%clk 0:00:15.9]} 24...
Rxh3 {[%clk 0:00:49.4]} 25. Re8+ {[%clk 0:00:15.6]} 25... Kd7 {[%clk 0:00:46.9]}
26. Rg8 {[%clk 0:00:15.7]} 26... Rh5 {[%clk 0:00:39.2]} 27. Re1 {[%clk 0:00:15]}
27... Rg5+ {[%clk 0:00:38]} 28. Rxg5 {[%clk 0:00:15.3]} 28... fxg5 {[%clk
0:00:38.3]} 29. Kg2 {[%clk 0:00:15.8]} 29... b5 {[%clk 0:00:34.5]} 30. a3 {[%clk
0:00:14.7]} 30... a5 {[%clk 0:00:34.2]} 31. Re4 {[%clk 0:00:15.1]} 31... a4
{[%clk 0:00:30.5]} 32. Rg4 {[%clk 0:00:14.6]} 32... Rd5 {[%clk 0:00:30.6]} 33.
Kf3 {[%clk 0:00:13.6]} 33... Ke6 {[%clk 0:00:29.6]} 34. Re4+ {[%clk 0:00:13]}
34... Kf5 {[%clk 0:00:29]} 35. Re8 {[%clk 0:00:13.5]} 35... Nd4+ {[%clk
0:00:25]} 36. Bxd4 {[%clk 0:00:12.6]} 36... Rxd4 {[%clk 0:00:25.4]} 37. Ke3
{[%clk 0:00:13]} 37... Rc4 {[%clk 0:00:23.7]} 38. c3 {[%clk 0:00:13]} 38... c6
{[%clk 0:00:16.7]} 39. Rf8+ {[%clk 0:00:13]} 39... Kg4 {[%clk 0:00:16.6]} 40.
Rg8 {[%clk 0:00:11.5]} 40... Rf4 {[%clk 0:00:15.8]} 41. Rg6 {[%clk 0:00:09]}
41... Rc4 {[%clk 0:00:14]} 42. f3+ {[%clk 0:00:08.5]} 42... Kf5 {[%clk
0:00:11.8]} 43. Rg8 {[%clk 0:00:08.9]} 43... Rc5 {[%clk 0:00:10.3]} 44. Rf8+
{[%clk 0:00:09.2]} 44... Ke5 {[%clk 0:00:10.3]} 45. Rg8 {[%clk 0:00:09.4]} 45...
Kf5 {[%clk 0:00:09.6]} 46. Rf8+ {[%clk 0:00:09.8]} 46... Ke5 {[%clk 0:00:09.8]}
47. Kd3 {[%clk 0:00:10.2]} 47... Rd5+ {[%clk 0:00:09.5]} 48. Ke2 {[%clk
0:00:10.8]} 48... Rc5 {[%clk 0:00:07.5]} 49. Ke3 {[%clk 0:00:11.3]} 49... Rd5
{[%clk 0:00:07.6]} 50. f4+ {[%clk 0:00:11.5]} 50... gxf4+ {[%clk 0:00:07.4]} 51.
Rxf4 {[%clk 0:00:12.1]} 51... Rd1 {[%clk 0:00:06.5]} 52. Re4+ {[%clk 0:00:12.4]}
52... Kd5 {[%clk 0:00:06.5]} 53. Rb4 {[%clk 0:00:12.7]} 53... Re1+ {[%clk
0:00:05.7]} 54. Kd2 {[%clk 0:00:12.9]} 54... Rh1 {[%clk 0:00:05.9]} 55. Rg4
{[%clk 0:00:12.7]} 55... Rh2+ {[%clk 0:00:05.8]} 56. Kc1 {[%clk 0:00:13]} 56...
c5 {[%clk 0:00:06.2]} 57. Kb1 {[%clk 0:00:11.4]} 57... Rg2 {[%clk 0:00:06.1]}
58. Rxg2 {[%clk 0:00:10.9]} 1-0